[Event "Konyaalti Open-A 2019"]
[Site "Konyaalti"]
[Date "2019.11.17"]
[Round "1.4"]
[White "Afshari, Mohammadreza"]
[Black "Nigalidze, Gaioz"]
[Result "0-1"]
[ECO "A69"]
[WhiteElo "2089"]
[BlackElo "2472"]
[Annotator "ChessBase"]
[PlyCount "62"]
[EventDate "2019.11.20"]
[EventType "swiss"]
[EventCountry "TUR"]
[SourceTitle "playchess.com"]
[Source "ChessBase"]
[SourceQuality "1"]
[TimeControl "5400+30"]

1. d4 {[%emt 0:00:30]} Nf6 {[%emt 0:00:30]} 2. c4 {[%emt 0:00:00]} e6 {[%emt 0:00:00]} 3. Nc3 {[%emt 0:00:00]} c5 {[%emt 0:00:00]} 4. d5 {[%emt 0:00:30]} exd5 {[%emt 0:00:30]} 5. cxd5 {[%emt 0:00:00]} d6 {[%emt 0:00:00]} 6. Nf3 {[%emt 0:00:00]} g6 {[%emt 0:00:00]} 7. Nd2 {[%emt 0:00:30]} Nbd7 {[%emt 0:01:30]} 8. e4 {[%emt 0:00:00]} a6 {[%emt 0:00:30]} 9. a4 {[%emt 0:00:00]} Bg7 {[%emt 0:01:30]} 10. Be2 {[%emt 0:00:00]} O-O {[%emt 0:00:30]} 11. O-O {[%emt 0:00:00]} Re8 {[%emt 0:00:00]} 12. f4 {[%emt 0:02:30]} Rb8 {[%emt 0:02:00]} 13. a5 {[%emt 0:00:30]} Qc7 {[%emt 0:05:30]} 14. Kh1 {[%emt 0:01:30]} b5 {[%emt 0:03:30]} 15. axb6 {[%emt 0:00:30]} Rxb6 {[%emt 0:00:30]} 16. Nc4 {[%emt 0:07:30]} Rb4 {[%emt 0:02:30]} 17. e5 {[%emt 0:05:30]} dxe5 {[%emt 0:01:30]} 18. fxe5 {[%emt 0:00:30]} Nxe5 {[%emt 0:00:30]} 19. Bf4 {[%emt 0:00:30]} Nfd7 {[%emt 0:01:30]} 20. d6 {[%emt 0:04:30]} Qd8 {[%emt 0:03:30]} 21. Nxe5 {[%emt 0:08:30]} Nxe5 {[%emt 0:02:30]} 22. Qd5 {[%emt 0:16:30]} Bb7 {[%emt 0:24:30]} 23. Qxc5 {[%emt 0:00:30]} Rxb2 {[%emt 0:00:00]} 24. Rab1 {[%emt 0:11:30]} Nd7 {[%emt 0:14:00]} 25. Qa3 {[%emt 0:00:30]} Rxb1 {[%emt 0:04:30]} 26. Rxb1 {[%emt 0:00:30]} Bxc3 {[%emt 0:03:30]} 27. Rxb7 {[%emt 0:05:30]} Rxe2 {[%emt 0:00:30]} 28. Qxc3 {[%emt 0:00:30]} Qf6 {[%emt 0:00:30]} 29. Qc8+ {[%emt 0:00:30]} Kg7 {[%emt 0:04:30]} 30. Rb1 {[%emt 0:08:30]} Qxf4 {[%emt 0:00:30]} 31. Qxd7 {[%emt 0:00:00]} Qf2 {[%emt 0:00:30]} 0-1

[Event "Konyaalti Open-A 2019"]
[Site "Konyaalti"]
[Date "2019.11.17"]
[Round "1.5"]
[White "Haznedaroglu, Kivanc"]
[Black "Mecit, Emre"]
[Result "1-0"]
[ECO "E60"]
[WhiteElo "2461"]
[BlackElo "2008"]
[Annotator "RC"]
[PlyCount "159"]
[EventDate "2019.11.20"]
[EventType "swiss"]
[EventCountry "TUR"]
[SourceTitle "playchess.com"]
[Source "ChessBase"]
[SourceQuality "1"]
[TimeControl "5400+30"]

1. d4 {[%emt 0:00:30]} Nf6 {[%emt 0:00:30]} 2. Nf3 {[%emt 0:00:00]} g6 {[%emt 0:00:00]} 3. g3 {[%emt 0:00:00]} Bg7 {[%emt 0:00:00]} 4. Bg2 {[%emt 0:00:00]} O-O {[%emt 0:00:30]} 5. c4 {[%emt 0:00:00]} c5 {[%emt 0:00:00]} 6. d5 {[%emt 0:04:30]} b5 {[%emt 0:06:00]} 7. cxb5 {[%emt 0:04:30]} a6 {[%emt 0:00:30]} 8. b6 {[%emt 0:00:30]} d6 {[%emt 0:01:30]} 9. Nc3 {[%emt 0:00:30]} Nbd7 {[%emt 0:00:30]} 10. O-O {[%emt 0:03:30]} Nxb6 {[%emt 0:04:30]} 11. h3 {[%emt 0:03:30]} a5 {[%emt 0:11:30]} 12. e4 {[%emt 0:02:30]} Ba6 {[%emt 0:03:30]} 13. Re1 {[%emt 0:00:00]} Nfd7 {[%emt 0:00:00]} 14. Bf1 {[%emt 0:03:00]} Bxf1 {[%emt 0:02:00]} 15. Kxf1 {[%emt 0:00:30]} a4 {[%emt 0:00:30]} 16. Qc2 {[%emt 0:03:30]} Qc8 {[%emt 0:08:30]} 17. Kg2 {[%emt 0:00:30]} Qa6 {[%emt 0:08:30]} 18. Bg5 {[%emt 0:07:30]} Rfe8 {[%emt 0:06:30]} 19. Rab1 {[%emt 0:06:30]} Nc4 {[%emt 0:05:30]} 20. h4 {[%emt 0:17:30]} Nce5 {[%emt 0:06:30]} 21. Nxe5 {[%emt 0:06:30]} Nxe5 {[%emt 0:00:30]} 22. Red1 {[%emt 0:02:30]} h6 {[%emt 0:01:30]} 23. Bf4 {[%emt 0:00:30]} Reb8 {[%emt 0:01:30]} 24. Bxe5 {[%emt 0:03:30]} Bxe5 {[%emt 0:00:30]} 25. Ne2 {[%emt 0:00:30]} Rb4 {[%emt 0:02:30]} 26. Nc1 {[%emt 0:10:45]} Qc4 {[%emt 0:03:30]} 27. Qxc4 {[%emt 0:00:20]} Rxc4 {[%emt 0:00:30]} 28. Re1 {[%emt 0:00:25]} Rb8 {[%emt 0:01:30]} 29. Nd3 {[%emt 0:03:06]} Bg7 {[%emt 0:04:30]} 30. Re2 {[%emt 0:02:13]} Rd4 {[%emt 0:01:30]} 31. Ne1 {[%emt 0:00:01]} Rdb4 {[%emt 0:00:58]} 32. Nd3 {[%emt 0:00:21]} R4b7 {[%emt 0:03:06]} 33. Rc2 {[%emt 0:00:10]} Bd4 {[%emt 0:00:53]} 34. Kf3 {[%emt 0:00:48]} e6 {[%emt 0:00:45]} 35. h5 {[%emt 0:06:07]} Kg7 {[%emt 0:02:52]} 36. hxg6 {[%emt 0:00:14]} fxg6 {[%emt 0:00:07]} 37. dxe6 {[%emt 0:00:57]} Kf6 {[%emt 0:00:22]} 38. Rc4 {[%emt 0:01:45]} Bxb2 {[%emt 0:03:03]} 39. Rxa4 {[%emt 0:00:01]} g5 {[%emt 0:03:53]} 40. Rh1 {[%emt 0:01:13]} Kg6 {[%emt 0:01:12]} 41. Kg4 {[%emt 0:01:03]} Bg7 {[%emt 0:01:56]} 42. f4 {[%emt 0:00:10]} gxf4 {[%emt 0:00:41]} 43. Nxf4+ {[%emt 0:01:00]} Kf6 {[%emt 0:00:03]} 44. Rh5 {[%emt 0:00:04]} Ke7 {[%emt 0:02:08]} 45. Rf5 {[%emt 0:00:33]} Be5 {[%emt 0:00:13]} 46. Rf7+ {[%emt 0:02:29]} Ke8 {[%emt 0:00:05]} 47. Rxb7 {[%emt 0:01:26]} Rxb7 {[%emt 0:00:09]} 48. Ra8+ {[%emt 0:00:04]} Ke7 {[%emt 0:00:11]} 49. Kf5 {[%emt 0:00:02]} Bxf4 {[%emt 0:01:26]} 50. gxf4 {[%emt 0:05:12]} c4 {[%emt 0:00:30]} 51. Rc8 {[%emt 0:00:37]} Rb5+ {[%emt 0:02:01]} 52. Kg6 {[%emt 0:00:43]} Rc5 {[%emt 0:00:00]} 53. Rxc5 {[%emt 0:00:01]} dxc5 {[%emt 0:00:00]} 54. f5 {[%emt 0:00:42]} c3 {[%emt 0:00:51]} 55. f6+ {[%emt 0:00:30]} Kxe6 {[%emt 0:00:40]} 56. f7 {[%emt 0:00:06]} c2 {[%emt 0:00:10]} 57. f8=Q {[%emt 0:00:30]} c1=Q {[%emt 0:00:36]} 58. Qf6+ {[%emt 0:00:30]} Kd7 {[%emt 0:00:36]} 59. e5 {[%emt 0:00:58]} Qc2+ {[%emt 0:00:35]} 60. Kf7 {[%emt 0:00:30]} Qxa2+ {[%emt 0:00:55]} 61. e6+ {[%emt 0:00:00]} Kd6 {[%emt 0:01:06]} 62. Qf4+ {[%emt 0:00:00]} Kc6 {[%emt 0:00:00]} 63. Qxh6 {[%emt 0:00:33]} Qd5 {[%emt 0:00:43]} 64. Qh8 {[%emt 0:00:36]} Kc7 {[%emt 0:01:18]} 65. Qg7 {[%emt 0:01:04]} Kd6 {[%emt 0:01:11]} 66. Qf8+ {[%emt 0:00:27]} Ke5 {[%emt 0:00:10]} 67. Qh8+ {[%emt 0:00:00]} Kf4 {[%emt 0:00:18]} 68. Qf6+ {[%emt 0:01:22]} Ke3 {[%emt 0:00:12]} 69. Kg6 {[%emt 0:00:23]} c4 {[%emt 0:00:42]} 70. e7 {[%emt 0:00:40]} Qe4+ {[%emt 0:01:51]} 71. Kg7 {[%emt 0:00:48]} Kd2 {[%emt 0:00:58]} 72. Qg5+ {[%emt 0:00:48]} Kd1 {[%emt 0:00:00]} 73. Qh5+ {[%emt 0:00:27]} Kc1 {[%emt 0:00:44]} 74. e8=Q {[%emt 0:00:31]} Qd4+ {[%emt 0:00:33]} 75. Qhe5 {[%emt 0:00:22]} Qg4+ {[%emt 0:00:10]} 76. Qg6 {[%emt 0:00:19]} Qd7+ {[%emt 0:00:05]} 77. Kh6 {[%emt 0:00:12]} Qh3+ {[%emt 0:00:31]} 78. Qgh5 {[%emt 0:00:10]} Qd3 {[%emt 0:00:17]} 79. Qa1+ {[%emt 0:00:12]} Kc2 {[%emt 0:00:07]} 80. Qh2+ {[%emt 0:00:02]} 1-0

[Event "Konyaalti Open-A 2019"]
[Site "Konyaalti"]
[Date "2019.11.17"]
[Round "1.10"]
[White "Yaylali, Adnan Dogan"]
[Black "Yurtseven, Melih"]
[Result "0-1"]
[ECO "B06"]
[WhiteElo "1965"]
[BlackElo "2388"]
[Annotator "RC"]
[PlyCount "70"]
[EventDate "2019.11.20"]
[EventType "swiss"]
[EventCountry "TUR"]
[SourceTitle "playchess.com"]
[Source "ChessBase"]
[SourceQuality "1"]
[TimeControl "5400+30"]

1. Nf3 {[%emt 0:00:30]} g6 {[%emt 0:00:30]} 2. e4 {[%emt 0:00:30]} Bg7 {[%emt 0:00:00]} 3. d4 {[%emt 0:00:30]} d6 {[%emt 0:00:00]} 4. Bc4 {[%emt 0:01:30]} Nf6 {[%emt 0:02:30]} 5. Qe2 {[%emt 0:00:30]} c6 {[%emt 0:02:30]} 6. Bb3 {[%emt 0:00:00]} e5 {[%emt 0:00:30]} 7. dxe5 {[%emt 0:06:00]} dxe5 {[%emt 0:00:30]} 8. O-O {[%emt 0:01:30]} Qe7 {[%emt 0:00:30]} 9. Nbd2 {[%emt 0:04:30]} O-O {[%emt 0:02:30]} 10. Nc4 {[%emt 0:13:30]} Bg4 {[%emt 0:02:30]} 11. a4 {[%emt 0:20:30]} Nbd7 {[%emt 0:04:30]} 12. c3 {[%emt 0:01:30]} h6 {[%emt 0:00:30]} 13. Bc2 {[%emt 0:00:30]} Nh5 {[%emt 0:02:30]} 14. g3 {[%emt 0:14:30]} Rfd8 {[%emt 0:09:30]} 15. Ne3 {[%emt 0:04:30]} Bh3 {[%emt 0:04:30]} 16. Re1 {[%emt 0:01:30]} Nc5 {[%emt 0:02:30]} 17. b4 {[%emt 0:01:30]} Ne6 {[%emt 0:03:30]} 18. Nc4 {[%emt 0:01:30]} Bg4 {[%emt 0:01:30]} 19. Ne3 {[%emt 0:03:30]} Nef4 {[%emt 0:12:30]} 20. gxf4 {[%emt 0:00:30]} Nxf4 {[%emt 0:00:00]} 21. Nxg4 {[%emt 0:01:30]} Nxe2+ {[%emt 0:00:00]} 22. Rxe2 {[%emt 0:00:30]} Qe6 {[%emt 0:00:30]} 23. Ne3 {[%emt 0:00:30]} Qh3 {[%emt 0:00:30]} 24. Nd2 {[%emt 0:02:10]} h5 {[%emt 0:00:30]} 25. Kh1 {[%emt 0:01:05]} Bh6 {[%emt 0:02:59]} 26. Re1 {[%emt 0:05:02]} Rxd2 {[%emt 0:05:01]} 27. Bxd2 {[%emt 0:03:35]} Bf4 {[%emt 0:00:30]} 28. Nf1 {[%emt 0:00:38]} Qf3+ {[%emt 0:00:30]} 29. Kg1 {[%emt 0:00:08]} Bxd2 {[%emt 0:00:30]} 30. Nxd2 {[%emt 0:00:48]} Qxc3 {[%emt 0:00:00]} 31. Bb3 {[%emt 0:00:55]} Qxd2 {[%emt 0:01:00]} 32. Re3 {[%emt 0:01:39]} Qxb4 {[%emt 0:02:30]} 33. Kh1 {[%emt 0:01:30]} Rd8 {[%emt 0:00:30]} 34. Rg1 {[%emt 0:00:40]} Kg7 {[%emt 0:00:30]} 35. Rg5 {[%emt 0:01:10]} Qd4 {[%emt 0:00:30]} 0-1

[Event "Konyaalti Open-A 2019"]
[Site "Konyaalti"]
[Date "2019.11.18"]
[Round "2.9"]
[White "Yurtseven, Melih"]
[Black "Suzan, Ufuk"]
[Result "0-1"]
[ECO "A15"]
[WhiteElo "2388"]
[BlackElo "1823"]
[Annotator "RC"]
[PlyCount "190"]
[EventDate "2019.11.20"]
[EventType "swiss"]
[EventCountry "TUR"]
[SourceTitle "playchess.com"]
[Source "ChessBase"]
[SourceQuality "1"]
[TimeControl "5400+30"]

1. Nf3 {[%emt 0:03:30]} Nf6 {[%emt 0:00:30]} 2. g3 {[%emt 0:00:00]} g6 {[%emt 0:00:30]} 3. b3 {[%emt 0:00:00]} Bg7 {[%emt 0:00:30]} 4. Bb2 {[%emt 0:00:30]} d6 {[%emt 0:00:30]} 5. Bg2 {[%emt 0:00:30]} e5 {[%emt 0:00:30]} 6. c4 {[%emt 0:00:00]} Nc6 {[%emt 0:01:30]} 7. O-O {[%emt 0:00:00]} O-O {[%emt 0:01:30]} 8. Nc3 {[%emt 0:03:30]} Ne8 {[%emt 0:06:30]} 9. e3 {[%emt 0:02:30]} f5 {[%emt 0:00:30]} 10. d4 {[%emt 0:00:00]} e4 {[%emt 0:01:30]} 11. Ne1 {[%emt 0:00:00]} Ne7 {[%emt 0:08:30]} 12. f3 {[%emt 0:09:30]} exf3 {[%emt 0:01:30]} 13. Nxf3 {[%emt 0:01:30]} Nf6 {[%emt 0:01:30]} 14. d5 {[%emt 0:01:30]} Ng4 {[%emt 0:05:30]} 15. Qd2 {[%emt 0:02:30]} Bd7 {[%emt 0:05:30]} 16. Rae1 {[%emt 0:00:30]} a5 {[%emt 0:04:30]} 17. Kh1 {[%emt 0:03:30]} a4 {[%emt 0:01:30]} 18. Nxa4 {[%emt 0:01:30]} Bxa4 {[%emt 0:00:30]} 19. Bxg7 {[%emt 0:00:30]} Kxg7 {[%emt 0:00:30]} 20. bxa4 {[%emt 0:00:00]} Kg8 {[%emt 0:06:30]} 21. a5 {[%emt 0:01:00]} c5 {[%emt 0:04:30]} 22. dxc6 {[%emt 0:01:30]} Nxc6 {[%emt 0:01:30]} 23. e4 {[%emt 0:25:30]} Rxa5 {[%emt 0:04:30]} 24. Ng5 {[%emt 0:03:30]} Qd7 {[%emt 0:07:30]} 25. h3 {[%emt 0:08:30]} Nge5 {[%emt 0:00:30]} 26. exf5 {[%emt 0:03:30]} gxf5 {[%emt 0:04:30]} 27. Ne6 {[%emt 0:04:30]} Qxe6 {[%emt 0:05:30]} 28. Bd5 {[%emt 0:04:35]} Rxd5 {[%emt 0:00:30]} 29. cxd5 {[%emt 0:00:25]} Qd7 {[%emt 0:03:30]} 30. dxc6 {[%emt 0:00:30]} Qxc6+ {[%emt 0:01:30]} 31. Qg2 {[%emt 0:00:30]} Ra8 {[%emt 0:02:01]} 32. Re2 {[%emt 0:05:26]} Ra3 {[%emt 0:00:56]} 33. Qxc6 {[%emt 0:04:47]} bxc6 {[%emt 0:01:05]} 34. Rxf5 {[%emt 0:00:10]} c5 {[%emt 0:03:06]} 35. Rd2 {[%emt 0:01:44]} Nc4 {[%emt 0:00:43]} 36. Rg5+ {[%emt 0:02:49]} Kf7 {[%emt 0:00:34]} 37. Rf2+ {[%emt 0:06:20]} Ke6 {[%emt 0:00:25]} 38. h4 {[%emt 0:01:01]} d5 {[%emt 0:01:30]} 39. Rff5 {[%emt 0:01:03]} Ne3 {[%emt 0:01:30]} 40. Re5+ {[%emt 0:00:27]} Kd6 {[%emt 0:00:20]} 41. Re8 {[%emt 0:00:15]} c4 {[%emt 0:00:24]} 42. h5 {[%emt 0:00:35]} c3 {[%emt 0:01:09]} 43. Rxe3 {[%emt 0:00:36]} c2 {[%emt 0:00:02]} 44. Re1 {[%emt 0:00:12]} Rd3 {[%emt 0:00:19]} 45. Rf5 {[%emt 0:01:01]} Rd1 {[%emt 0:00:55]} 46. Rff1 {[%emt 0:00:00]} Rxe1 {[%emt 0:01:33]} 47. Rxe1 {[%emt 0:00:00]} d4 {[%emt 0:00:25]} 48. Kg2 {[%emt 0:00:24]} d3 {[%emt 0:00:30]} 49. Re3 {[%emt 0:00:35]} c1=Q {[%emt 0:00:30]} 50. Rxd3+ {[%emt 0:00:37]} Ke5 {[%emt 0:00:30]} 51. Rf3 {[%emt 0:00:38]} Qg5 {[%emt 0:00:30]} 52. Rf4 {[%emt 0:00:35]} Qxh5 {[%emt 0:00:30]} 53. a4 {[%emt 0:00:38]} Qe2+ {[%emt 0:02:01]} 54. Kg1 {[%emt 0:00:10]} Qc2 {[%emt 0:00:00]} 55. Kh1 {[%emt 0:00:35]} Qc6+ {[%emt 0:01:12]} 56. Kg1 {[%emt 0:00:13]} Qh6 {[%emt 0:00:33]} 57. Kg2 {[%emt 0:00:02]} Qh5 {[%emt 0:00:45]} 58. a5 {[%emt 0:02:04]} Qe2+ {[%emt 0:00:46]} 59. Kh3 {[%emt 0:00:29]} Qe1 {[%emt 0:02:43]} 60. Rh4 {[%emt 0:00:29]} Qf1+ {[%emt 0:01:15]} 61. Kh2 {[%emt 0:00:18]} Qf2+ {[%emt 0:00:04]} 62. Kh3 {[%emt 0:00:04]} Qg1 {[%emt 0:01:40]} 63. Kg4 {[%emt 0:01:08]} Ke4 {[%emt 0:02:42]} 64. Kg5+ {[%emt 0:00:32]} Kf3 {[%emt 0:00:09]} 65. Rf4+ {[%emt 0:00:12]} Ke3 {[%emt 0:00:02]} 66. Kg4 {[%emt 0:00:45]} h5+ {[%emt 0:00:44]} 67. Kxh5 {[%emt 0:00:28]} Qxg3 {[%emt 0:00:06]} 68. Rf5 {[%emt 0:00:14]} Ke4 {[%emt 0:00:43]} 69. Rg5 {[%emt 0:00:20]} Qd6 {[%emt 0:01:10]} 70. Rg4+ {[%emt 0:00:15]} Kf3 {[%emt 0:00:36]} 71. Rg5 {[%emt 0:01:00]} Qe6 {[%emt 0:00:13]} 72. Rg6 {[%emt 0:00:45]} Qe8 {[%emt 0:00:29]} 73. Kg5 {[%emt 0:00:28]} Qe5+ {[%emt 0:00:12]} 74. Kh6 {[%emt 0:00:11]} Qxa5 {[%emt 0:00:05]} 75. Rf6+ {[%emt 0:00:17]} Ke4 {[%emt 0:00:20]} 76. Kg6 {[%emt 0:00:11]} Qd5 {[%emt 0:00:10]} 77. Rf7 {[%emt 0:00:47]} Qe5 {[%emt 0:00:34]} 78. Rf6 {[%emt 0:00:18]} Qe8+ {[%emt 0:00:10]} 79. Kg7 {[%emt 0:00:20]} Ke5 {[%emt 0:00:42]} 80. Rf7 {[%emt 0:00:21]} Qe6 {[%emt 0:00:33]} 81. Kg8 {[%emt 0:00:38]} Qh6 {[%emt 0:01:08]} 82. Re7+ {[%emt 0:00:28]} Kd6 {[%emt 0:00:06]} 83. Rf7 {[%emt 0:00:21]} Qh5 {[%emt 0:01:40]} 84. Rh7 {[%emt 0:01:24]} Qe8+ {[%emt 0:00:29]} 85. Kg7 {[%emt 0:00:01]} Ke6 {[%emt 0:00:54]} 86. Rh6+ {[%emt 0:00:21]} Ke5 {[%emt 0:00:21]} 87. Rf6 {[%emt 0:01:00]} Qe7+ {[%emt 0:00:23]} 88. Rf7 {[%emt 0:00:04]} Qg5+ {[%emt 0:00:04]} 89. Kh8 {[%emt 0:01:16]} Ke6 {[%emt 0:01:50]} 90. Rh7 {[%emt 0:00:36]} Kf6 {[%emt 0:01:30]} 91. Rc7 {[%emt 0:00:29]} Qh5+ {[%emt 0:00:58]} 92. Kg8 {[%emt 0:00:04]} Qe8+ {[%emt 0:00:50]} 93. Kh7 {[%emt 0:00:02]} Qe4+ {[%emt 0:00:03]} 94. Kg8 {[%emt 0:00:22]} Qg2+ {[%emt 0:00:26]} 95. Kf8 {[%emt 0:00:49]} Qa8+ {[%emt 0:00:30]} 0-1

[Event "Konyaalti Open-A 2019"]
[Site "Konyaalti"]
[Date "2019.11.18"]
[Round "2.10"]
[White "Tum, Hakan"]
[Black "Solozhenkin, Evgeniy"]
[Result "0-1"]
[ECO "A47"]
[WhiteElo "1820"]
[BlackElo "2387"]
[Annotator "RC"]
[PlyCount "82"]
[EventDate "2019.11.20"]
[EventType "swiss"]
[EventCountry "TUR"]
[SourceTitle "playchess.com"]
[Source "ChessBase"]
[SourceQuality "1"]
[TimeControl "5400+30"]

1. d4 {[%emt 0:00:30]} Nf6 {[%emt 0:00:30]} 2. Bf4 {[%emt 0:00:00]} e6 {[%emt 0:06:30]} 3. e3 {[%emt 0:02:00]} b6 {[%emt 0:02:30]} 4. h3 {[%emt 0:07:30]} Bb7 {[%emt 0:00:30]} 5. Nf3 {[%emt 0:00:30]} d5 {[%emt 0:10:30]} 6. c4 {[%emt 0:01:30]} Bd6 {[%emt 0:02:30]} 7. Bxd6 {[%emt 0:15:30]} cxd6 {[%emt 0:02:30]} 8. cxd5 {[%emt 0:01:30]} Nxd5 {[%emt 0:03:30]} 9. Qa4+ {[%emt 0:24:30]} Nd7 {[%emt 0:10:30]} 10. Nbd2 {[%emt 0:01:30]} O-O {[%emt 0:01:30]} 11. Nc4 {[%emt 0:02:30]} N7f6 {[%emt 0:02:30]} 12. Bd3 {[%emt 0:02:30]} a5 {[%emt 0:09:30]} 13. Na3 {[%emt 0:11:30]} Nb4 {[%emt 0:11:30]} 14. Be2 {[%emt 0:02:30]} Bc6 {[%emt 0:00:00]} 15. Nb5 {[%emt 0:01:30]} Qd7 {[%emt 0:00:00]} 16. O-O {[%emt 0:01:30]} Nfd5 {[%emt 0:06:30]} 17. a3 {[%emt 0:03:52]} Nc7 {[%emt 0:02:30]} 18. axb4 {[%emt 0:00:36]} Nxb5 {[%emt 0:00:30]} 19. Qb3 {[%emt 0:02:23]} a4 {[%emt 0:00:30]} 20. Qd3 {[%emt 0:02:11]} Na7 {[%emt 0:02:30]} 21. e4 {[%emt 0:06:24]} Bb5 {[%emt 0:01:30]} 22. Qd2 {[%emt 0:00:33]} Rfc8 {[%emt 0:00:30]} 23. e5 {[%emt 0:02:08]} d5 {[%emt 0:00:30]} 24. Bxb5 {[%emt 0:01:22]} Qxb5 {[%emt 0:00:30]} 25. Qf4 {[%emt 0:00:41]} Nc6 {[%emt 0:03:01]} 26. Ng5 {[%emt 0:03:16]} Nd8 {[%emt 0:00:09]} 27. Ra3 {[%emt 0:00:13]} h6 {[%emt 0:04:12]} 28. Nf3 {[%emt 0:00:20]} Qxb4 {[%emt 0:01:14]} 29. Nh2 {[%emt 0:00:01]} Qe7 {[%emt 0:00:34]} 30. Rg3 {[%emt 0:00:31]} Kf8 {[%emt 0:00:38]} 31. Qg4 {[%emt 0:00:22]} g6 {[%emt 0:02:28]} 32. Qf4 {[%emt 0:01:18]} Kg7 {[%emt 0:03:06]} 33. Ng4 {[%emt 0:00:27]} Qh4 {[%emt 0:00:18]} 34. Qe3 {[%emt 0:00:45]} Rc4 {[%emt 0:01:54]} 35. Rf3 {[%emt 0:01:12]} Qg5 {[%emt 0:01:07]} 36. Qe2 {[%emt 0:01:05]} Nc6 {[%emt 0:00:54]} 37. h4 {[%emt 0:00:42]} Nxd4 {[%emt 0:02:21]} 38. Rxf7+ {[%emt 0:00:47]} Kxf7 {[%emt 0:00:10]} 39. Qxc4 {[%emt 0:00:05]} Qxg4 {[%emt 0:00:01]} 40. Qc7+ {[%emt 0:00:33]} Kg8 {[%emt 0:00:05]} 41. g3 {[%emt 0:00:59]} Qh3 {[%emt 0:00:30]} 0-1

[Event "Konyaalti Open-A 2019"]
[Site "Konyaalti"]
[Date "2019.11.21"]
[Round "6.1"]
[White "Shanava, Konstantine"]
[Black "Gokerkan, Cem Kaan"]
[Result "1/2-1/2"]
[ECO "B24"]
[WhiteElo "2491"]
[BlackElo "2452"]
[Annotator "ChessBase"]
[PlyCount "97"]
[EventDate "2019.11.20"]
[EventType "swiss"]
[EventCountry "TUR"]
[SourceTitle "playchess.com"]
[Source "ChessBase"]
[SourceQuality "1"]
[TimeControl "5400+30"]

1. e4 {[%emt 0:03:30]} c5 {[%emt 0:06:30]} 2. Nc3 {[%emt 0:00:30]} Nc6 {[%emt 0:00:30]} 3. g3 {[%emt 0:00:30]} g6 {[%emt 0:00:00]} 4. Bg2 {[%emt 0:00:30]} Bg7 {[%emt 0:00:00]} 5. d3 {[%emt 0:00:00]} Rb8 {[%emt 0:00:00]} 6. f4 {[%emt 0:01:00]} b5 {[%emt 0:04:00]} 7. Nf3 {[%emt 0:01:30]} b4 {[%emt 0:05:30]} 8. Nd5 {[%emt 0:05:30]} e6 {[%emt 0:06:30]} 9. Ne3 {[%emt 0:05:30]} Nge7 {[%emt 0:01:30]} 10. O-O {[%emt 0:07:30]} O-O {[%emt 0:09:30]} 11. f5 {[%emt 0:06:30]} exf5 {[%emt 0:14:30]} 12. exf5 {[%emt 0:00:30]} d5 {[%emt 0:02:30]} 13. Nh4 {[%emt 0:02:30]} Bf6 {[%emt 0:00:30]} 14. Ng4 {[%emt 0:02:30]} Bxh4 {[%emt 0:03:30]} 15. fxg6 {[%emt 0:17:30]} f5 {[%emt 0:23:00]} 16. g7 {[%emt 0:05:30]} Rf6 {[%emt 0:03:27]} 17. gxh4 {[%emt 0:00:30]} Rg6 {[%emt 0:00:13]} 18. Bg5 {[%emt 0:04:30]} Kxg7 {[%emt 0:01:33]} 19. Ne3 {[%emt 0:00:30]} d4 {[%emt 0:05:16]} 20. Nc4 {[%emt 0:06:30]} Bb7 {[%emt 0:04:26]} 21. Rf2 {[%emt 0:00:30]} h6 {[%emt 0:03:22]} 22. Bf4 {[%emt 0:00:30]} Nd5 {[%emt 0:00:03]} 23. Bxb8 {[%emt 0:01:30]} Qxb8 {[%emt 0:00:36]} 24. Qf3 {[%emt 0:03:30]} Nce7 {[%emt 0:03:11]} 25. Kh1 {[%emt 0:00:30]} Bc6 {[%emt 0:00:18]} 26. Na5 {[%emt 0:00:00]} Ba8 {[%emt 0:00:25]} 27. Re1 {[%emt 0:00:00]} Kf8 {[%emt 0:01:20]} 28. Rxe7 {[%emt 0:15:30]} Kxe7 {[%emt 0:00:05]} 29. Qxf5 {[%emt 0:00:01]} Qg8 {[%emt 0:01:42]} 30. Re2+ {[%emt 0:01:44]} Kd8 {[%emt 0:00:01]} 31. Qf3 {[%emt 0:06:22]} Kc7 {[%emt 0:00:54]} 32. h3 {[%emt 0:01:25]} Rg3 {[%emt 0:00:11]} 33. Qe4 {[%emt 0:00:48]} Rxh3+ {[%emt 0:00:39]} 34. Kg1 {[%emt 0:00:29]} Rg3 {[%emt 0:00:31]} 35. Qe5+ {[%emt 0:00:24]} Kd7 {[%emt 0:00:44]} 36. Kh2 {[%emt 0:00:19]} Re3 {[%emt 0:00:31]} 37. Bh3+ {[%emt 0:01:19]} Rxh3+ {[%emt 0:00:00]} 38. Kxh3 {[%emt 0:00:34]} Ne3 {[%emt 0:00:02]} 39. Qf4 {[%emt 0:00:29]} Bg2+ {[%emt 0:01:23]} 40. Kh2 {[%emt 0:00:14]} Nf1+ {[%emt 0:00:10]} 41. Kg1 {[%emt 0:00:06]} Bh3+ {[%emt 0:00:06]} 42. Kf2 {[%emt 0:00:17]} Ne3 {[%emt 0:00:36]} 43. Rxe3 {[%emt 0:01:02]} Qg2+ {[%emt 0:00:01]} 44. Ke1 {[%emt 0:00:06]} dxe3 {[%emt 0:00:39]} 45. Qf7+ {[%emt 0:00:23]} Kd8 {[%emt 0:01:20]} 46. Qf8+ {[%emt 0:01:17]} Kd7 {[%emt 0:00:04]} 47. Qf7+ {[%emt 0:00:15]} Kd8 {[%emt 0:00:04]} 48. Qf8+ {[%emt 0:00:57]} Kd7 {[%emt 0:00:06]} 49. Qf7+ {[%emt 0:00:15]} 1/2-1/2